Cogmind - Beta 13 @@@ ROGUE MODE // 2024.04.30 @ 02:33:10 Player: Some Pennies Result: Destroyed by H-55 Commando with Gauss Rifle Performance ------------- Evolutions (0) 0 Regions Visited (3) 600 Robots Destroyed (31) 155 Value Destroyed (520) 520 Prototype IDs (23) 460 Alien Tech Used (0) 0 Bonus (873) 873 TOTAL SCORE: 2608 Bonus ------- Follower Combat Kills 649 Aligned with FarCom 300 Friendly Fire -76 Cogmind --------- Core Integrity 0/250 Matter 9/300 Energy 100/100 System Corruption 5% Temperature Cool (0) Movement Walking (250) Ox2 Location -10/Exiles Parts ------- > --- POWER (1) -------- (None) > --- PROPULSION (2) --- Potential Leg Potential Leg > --- UTILITY (2) ------ Cargo Storage Unit > --- WEAPON (2) ------- Rocket Launcher > --- INVENTORY (30) --- Ion Engine Ion Engine Light Treads Advanced Treads Heat Sink Lightpack 2.0 Advanced Weight Redist. System Improved Sensor Array Signal Interpreter Seismic Detector Transport Network Coupler Light Armor Plating Improved Light Armor Plating Heavy Particle Cannon Heavy Particle Cannon Assault Rifle Assault Rifle Assault Rifle Assault Rifle Assault Rifle Assault Rifle Assault Rifle Grenade Launcher Rocket Launcher Rocket Launcher Mining Laser Peak State ------------ > --- POWER ------------ (None) > --- PROPULSION ------- Potential Leg Potential Leg > --- UTILITY ---------- Cargo Storage Unit > --- WEAPON ----------- Rocket Launcher Rocket Launcher > --- INVENTORY -------- Ion Engine Ion Engine Light Treads Advanced Treads Heat Sink Lightpack 2.0 Advanced Weight Redist. System Improved Sensor Array Signal Interpreter Seismic Detector Transport Network Coupler Light Armor Plating Improved Light Armor Plating Heavy Particle Cannon Heavy Particle Cannon Assault Rifle Assault Rifle Assault Rifle Assault Rifle Assault Rifle Assault Rifle Assault Rifle Grenade Launcher Rocket Launcher Rocket Launcher Mining Laser [Rating: 32] Favorites ----------- Power Light Ion Engine Engine Light Ion Engine Propulsion Light Treads Treads Light Treads Leg Potential Leg Utility Cargo Storage Unit Device Seismic Detector Storage Cargo Storage Unit Weapon Assault Rifle Ballistic Gun Assault Rifle Launcher Rocket Launcher Special Weapon Mining Laser Build | -11 -10 -10 -10 ------- Run | Yrd Mat Min Exi Slots Evolved . | . . . . Power . | . . . . Propulsion . | . . . . Utility . | . . . . Weapon . | . . . . Parts Attached 30 | 9 12 2 7 Power 4 | 1 2 . 1 Engine 4 | 1 2 . 1 Core . | . . . . Reactor . | . . . . Propulsion 6 | 2 2 . 2 Treads 4 | 2 2 . . Leg 2 | . . . 2 Wheel . | . . . . Hover . | . . . . Flight . | . . . . Utility 7 | 3 4 . . Device 3 | 2 1 . . Storage 4 | 1 3 . . Processor . | . . . . Hackware . | . . . . Protection . | . . . . Artifact . | . . . . Weapon 13 | 3 4 2 4 Energy Gun . | . . . . Energy Cannon . | . . . . Ballistic Gun 10 | 3 3 2 2 Ballistic Cannon . | . . . . Launcher 2 | . . . 2 Special Weapon 1 | . 1 . . Impact Weapon . | . . . . Slashing Weapon . | . . . . Piercing Weapon . | . . . . Special Melee Weapon . | . . . . Unidentified Prototypes . | . . . . Parts Lost 4 | . 1 . 3 Power 1 | . . . 1 Propulsion 2 | . 1 . 1 Utility . | . . . . Weapon 1 | . . . 1 Highest Loss Streak 3 | . 1 . 3 To Critical Strikes 1 | . . . 1 Average Slot Usage (%) 80 | . 87 76 63 Engine 13 | . 14 14 13 Treads 27 | . 26 28 27 Device 2 | . 3 . . Storage 14 | . 14 14 14 Ballistic Gun 21 | . 27 19 6 Naked Turns . | . . . . Heaviest Build 151 | 12 146 148 151 Greatest Support 60 | 40 40 40 60 Greatest Overweight (x) 7 | . 7 3 3 Average Overweight (x) 2 | . 2 3 2 Largest Inventory Capacity 30 | 8 30 30 30 Average Capacity 26 | 7 26 30 30 Most Carried 30 | 5 26 30 30 Average Carried 18 | 3 14 28 28 Final Capacity 30 | 8 30 30 30 Final Carried 29 | 5 26 29 28 Class Distribution -------------------- 78% | Hauler-Mutant 21% | Mutant Dominant Class ---------------- Hauler-Mutant | -10/Materials Hauler-Mutant | -10/Mines Hauler-Mutant | -10/Exiles Resources | -11 -10 -10 -10 ----------- Run | Yrd Mat Min Exi Matter Collected 868 | 382 486 . . Remotely . | . . . . Salvage Created 853 | 179 609 . 65 Parts 61 | 14 44 . 3 Haulers Intercepted 2 | . 2 . . Recyclers Shooed 4 | 1 3 . . Parts Field Recycled . | . . . . Retrieved Matter . | . . . . Parts Self-Destructed . | . . . . Prevented . | . . . . Kills | -11 -10 -10 -10 ------- Run | Yrd Mat Min Exi Combat Hostiles Destroyed 14 | . 11 . 3 Guns 12 | . 11 . 1 AOE 2 | . . . 2 Classes Destroyed 9 | 2 6 . 1 Worker 1 | . 1 . . Builder 2 | . 2 . . Tunneler 6 | 6 . . . Hauler 2 | . 2 . . Recycler 3 | 1 2 . . Watcher 3 | . 3 . . Swarmer 6 | . 6 . . Grunt 6 | . 5 . 1 Hunter 2 | . . . 2 Best Kill Streak 5 | 2 5 . 2 Combat Bots Only 3 | . 3 . 2 Max Kills in Single Turn 2 | 1 2 . 1 Gunslinging . | . . . . Exploded 1 | . . . 1 Melee . | . . . . Uniques/NPCs Destroyed . | . . . . Combat | -11 -10 -10 -10 -------- Run | Yrd Mat Min Exi Hostile Shots Fired 146 | . 81 . 65 Missed 38 | . 21 . 17 Damage Taken 1418 | . 663 . 755 Core 265 | . 111 . 154 Absorbed by Shields . | . . . . Core Remaining (%) 100 | 100 . . . Volleys Fired 107 | 27 69 . 11 Largest 2 | 2 2 . 2 Hottest 100 | 40 100 . 66 Shots Fired 213 | 54 137 . 22 Gun 206 | 54 136 . 16 Cannon . | . . . . Launcher 6 | . . . 6 Special 1 | . 1 . . Kinetic 206 | 54 136 . 16 Thermal 1 | . 1 . . Explosive 6 | . . . 6 Electromagnetic . | . . . . Robot Hit Streak 12 | 5 12 . 4 Robot Miss Streak 3 | 3 3 . 3 Penetration Max . | . . . . Secondary Targets 4 | . 3 . 1 Max Gunslinging Chain 1 | . 1 . 1 Shots Hit Robots 125 | 28 88 . 9 Core Hits 58 | 10 35 . 13 Critical Kills 2 | . 2 . . Critical Parts Destroyed . | . . . . Critical Strikes 2 | . 2 . . Destroy 2 | . 2 . . Melee Attacks . | . . . . Impact . | . . . . Slashing . | . . . . Piercing . | . . . . Sneak Attacks . | . . . . Combat Hostiles . | . . . . Follow-up Attacks . | . . . . Damage Inflicted 1801 | 299 990 . 512 Guns 1387 | 299 990 . 98 Cannons . | . . . . Explosions 414 | . . . 414 Melee . | . . . . Ramming . | . . . . Kinetic 1387 | 299 990 . 98 Thermal . | . . . . Explosive 414 | . . . 414 Electromagnetic . | . . . . Impact . | . . . . Slashing . | . . . . Piercing . | . . . . Highest Corruption 5 | . 3 3 5 Average Corruption 2 | . 2 3 3 Corruption Purged . | . . . . Corruption Blocked . | . . . . Effects 78 | . 49 5 24 Message Errors 15 | . 8 2 5 Matter Fused 25 | . 16 2 7 Heat Flow Errors 5 | . 3 . 2 Energy Discharges 10 | . 7 . 3 Parts Fused 4 | . 3 1 . Data Loss (minor) 15 | . 8 . 7 Data Loss (major) 2 | . 2 . . Misfires 1 | . 1 . . Weapon Failures 1 | . 1 . . Overload Shots . | . . . . Overflow Damage . | . . . . Projectiles . | . . . . Explosions . | . . . . Melee . | . . . . Knockbacks . | . . . . Impact . | . . . . Kinetic . | . . . . Secondary . | . . . . Self-Inflicted Damage . | . . . . Shots . | . . . . Rammed . | . . . . Targets Rammed . | . . . . Kicked . | . . . . Crushed . | . . . . Highest Temperature 261 | . 209 . 261 Average Temperature 61 | . 42 . 101 Received Heat Transfer 225 | . 177 . 48 Siege Activations . | . . . . Robots Corrupted . | . . . . Combat Hostiles . | . . . . Parts Fried . | . . . . Impact Corruptions . | . . . . Robots Melted . | . . . . Combat Hostiles . | . . . . Parts Melted . | . . . . Heat Transferred . | . . . . Parts Sabotaged . | . . . . Parts Stolen . | . . . . Parts Stripped . | . . . . Power Chain Reactions . | . . . . Alert | -11 -10 -10 -10 ------- Run | Yrd Mat Min Exi Peak Influence 136 | 35 136 . . Initial 22 | . 22 . . Average 39 | 18 45 . . Maximum Alert Level . | . . . . Low Security (%) 100 | 100 100 100 . Level 1 . | . . . . Level 2 . | . . . . Level 3 . | . . . . Level 4 . | . . . . Level 5 . | . . . . High Security . | . . . . Max Security . | . . . . Squads Dispatched 3 | . 2 1 . Investigation 2 | . 1 1 . Extermination . | . . . . Reinforcement 1 | . 1 . . Assault . | . . . . Garrison . | . . . . Intercept . | . . . . Searches Triggered . | . . . . Construction Impeded . | . . . . Haulers Reinforced . | . . . . Active Scanning Responses . | . . . . Cargo Convoy Interrupts . | . . . . Stealth | -11 -10 -10 -10 --------- Run | Yrd Mat Min Exi Distress Signals 1 | . 1 . . Communications Jammed . | . . . . Distress Signals . | . . . . Times Spotted 43 | . 28 . 15 Peak Tracking Total 6 | . 5 . 6 Tactical Retreats . | . . . . Traps | -11 -10 -10 -10 ------- Run | Yrd Mat Min Exi Traps Triggered 4 | . 4 . . Indirectly . | . . . . Trap Hack Attempts . | . . . . Triggered . | . . . . Disarmed . | . . . . Reprogrammed . | . . . . Reused . | . . . . Traps Extracted . | . . . . Installed . | . . . . Triggered . | . . . . Machines | -11 -10 -10 -10 ---------- Run | Yrd Mat Min Exi Machines Disabled 5 | . 1 . 4 Max in Single Turn 1 | . 1 . 1 Machines Repaired . | . . . . Machines Dismantled . | . . . . Machines Sabotaged . | . . . . Overloaded Fab Kills . | . . . . Hacking | -11 -10 -10 -10 --------- Run | Yrd Mat Min Exi Machines Accessed 8 | . 6 1 1 Terminals 6 | . 6 . . Fabricators . | . . . . Repair Stations . | . . . . Recycling Units . | . . . . Scanalyzers . | . . . . Garrison Access . | . . . . Total Hacks 18 | . 16 1 1 Successful 9 | . 7 1 1 Failed 8 | . 8 . . Catastrophic 1 | . 1 . . Database Lockouts 1 | . 1 . . Manual 10 | . 9 . 1 Terminals 16 | . 16 . . Fabricators . | . . . . Repair Stations . | . . . . Recycling Units . | . . . . Scanalyzers . | . . . . Garrison Access . | . . . . Terminal Hacks 9 | . 7 1 1 Robot Analysis 3 | . 3 . . Open Door 1 | . . 1 . Locate Traps 2 | . 2 . . Zone Layout 2 | . 2 . . Derelict Proto ID Bank 1 | . . . 1 Fabricator Hacks . | . . . . Repair Station Hacks . | . . . . Recycling Unit Hacks . | . . . . Scanalyzer . | . . . . Garrison Access Hacks . | . . . . Unauthorized Hacks . | . . . . Terminals . | . . . . Fabricators . | . . . . Repair Stations . | . . . . Recycling Units . | . . . . Scanalyzers . | . . . . Garrison Access . | . . . . Data Cores Recovered . | . . . . Used . | . . . . Hacking Detections 6 | . 6 . . Full Trace Events 1 | . 1 . . Feedback Events . | . . . . Feedback Blocked . | . . . . Robot Schematics Acquired . | . . . . Robots Built . | . . . . Authchips . | . . . . Time . | . . . . Total Robot Build Rating . | . . . . Part Schematics Acquired . | . . . . Parts Built . | . . . . Authchips . | . . . . Time . | . . . . Total Part Build Rating . | . . . . Parts Repaired . | . . . . Time . | . . . . Parts Recycled . | . . . . Recycled Matter . | . . . . Retrieved Matter . | . . . . Retrieved Components . | . . . . Parts Scanalyzed . | . . . . Part Schematics Acquired . | . . . . Parts Damaged . | . . . . Bothacking | -11 -10 -10 -10 ------------ Run | Yrd Mat Min Exi Used RIF Installer . | . . . . Robots Hacked . | . . . . Non-combat . | . . . . Combat . | . . . . Robot Hacks Applied . | . . . . Relay Couplers Released . | . . . . Fabnet Peak Effective % . | . . . . Robots Rewired . | . . . . Allies Hacked . | . . . . Hacks Repelled . | . . . . Allies | -11 -10 -10 -10 -------- Run | Yrd Mat Min Exi Total Allies . | . . . . Largest Group . | . . . . Highest-Rated Group . | . . . . Highest-Rated Ally . | . . . . Total Orders . | . . . . Ally Attacks 94 | . . . 94 Total Damage 4781 | . . . 4781 Kills 28 | . . . 28 Allies Corrupted 2 | . . . 2 Allies Melted . | . . . . Turrets Deployed 3 | . . . 3 Intel | -11 -10 -10 -10 ------- Run | Yrd Mat Min Exi Robot Analysis Total 3 | . 3 . . Derelict Logs Recovered . | . . . . Drone Launches . | . . . . Drone Recoveries . | . . . . Exploration | -11 -10 -10 -10 ------------- Run | Yrd Mat Min Exi Turns Passed 4845 | 354 2946 295 1250 Spaces Moved 1371 | 173 825 72 301 Core 17 | 17 . . . Treads 1350 | 156 825 72 297 Legs 4 | . . . 4 Wheels . | . . . . Hover . | . . . . Flight . | . . . . Fastest Speed 50 | 50 160 400 250 Average Speed 321 | 149 322 400 398 Slowest Speed 720 | 160 720 400 400 Overloaded Moves . | . . . . Propulsion Burnouts . | . . . . Robots Hopped . | . . . . Cave-ins Triggered . | . . . . Exploration Rate (%) 37 | 9 90 12 40 Regions Visited 3 Branch Regions 2 Pre-discovered Areas 1 | . . 1 . Known Exits Taken . | . . . . Unknown Exits Taken 3 | 1 1 1 . Scrap Searched . | . . . . Spaces Dug 1 | . 1 . . Terrain Destroyed 23 | . 1 . 22 Melee . | . . . . Projectile 1 | . 1 . . AOE 22 | . . . 22 Terrain Rammed . | . . . . Walls Destroyed . | . . . . Machines Disabled . | . . . . Actions | -11 -10 -10 -10 --------- Run | Yrd Mat Min Exi Total 1626 | 219 991 83 333 Wait 39 | . 38 . 1 Move 1368 | 172 824 71 301 Hop . | . . . . Pick Up 60 | 11 37 6 6 Fast Attach 2 | 1 . 1 . Attach 12 | 6 2 1 3 Detach . | . . . . Swap 16 | 2 10 . 4 Drop 22 | . 11 4 7 Fire 107 | 27 69 . 11 Melee . | . . . . Ram . | . . . . Kick . | . . . . Crush . | . . . . Escape Stasis . | . . . . Rewire . | . . . . Trap . | . . . . Miscellaneous . | . . . . Route ------- -11/Scrapyard -10/Materials (discovered 5 exits: [*Mat x3] / *Min x2) -10/Mines -10/Exiles History --------- Turn | Location | Event 6 | -11/Scrapyard | Discovered new exit (range 15) 355 | -11/Scrapyard | Entered Materials 367 | -10/Materials | Build established: Mutant 616 | -10/Materials | Discovered new exit (range 16) 742 | -10/Materials | Central database locked down 1343 | -10/Materials | Build established: Hauler-Mutant 1446 | -10/Materials | Discovered new exit (range 13) 1791 | -10/Materials | Discovered new exit (range 5) 2499 | -10/Materials | Discovered new exit (range 16) 3085 | -10/Materials | Discovered new exit (range 7) 3301 | -10/Materials | Entered Mines 3310 | -10/Mines | Met a Derelict shopkeep closing up shop 3493 | -10/Mines | Learned location of Storage (-9) 3576 | -10/Mines | Deemed a non-threat by the Exiles lab entrance 3580 | -10/Mines | Discovered new exit (range 5) 3596 | -10/Mines | Entered Exiles 3705 | -10/Exiles | Met 8R-AWN 3769 | -10/Exiles | Met EX-HEX 3881 | -10/Exiles | Met EX-BIN 3929 | -10/Exiles | Aligned with FarCom system 3933 | -10/Exiles | Given EX-Vault access code 4125 | -10/Exiles | Opened EX-Vault 4229 | -10/Exiles | Warned to stay clear of 0b10 Research branches 4286 | -10/Exiles | Exiles lab attacked by MAIN.C 4416 | -10/Exiles | Found Deploy-a-Sentry 4421 | -10/Exiles | Found Deploy-a-Sentry 4426 | -10/Exiles | Found Deploy-a-Sentry 4545 | -10/Exiles | Core integrity fell below 50% 4557 | -10/Exiles | DAS Turret deployed 4587 | -10/Exiles | DAS Turret deployed 4604 | -10/Exiles | DAS Turret deployed 4718 | -10/Exiles | Found Lightpack 2.0 4735 | -10/Exiles | Found Potential Leg 4740 | -10/Exiles | Found Potential Leg 4835 | -10/Exiles | Core integrity fell below 20% 4845 | -10/Exiles | Lost 3 allies 4846 | -10/Exiles | Destroyed by H-55 Commando with Gauss Rifle Last Messages --------------- 04808_ DAS Turret system terminally corrupted. 04812_ Destroyed Mic. Nuclear Core. 04812_ P-60 Hacker knocked back. 04813_ Slug penetrates DAS Turret. 04814_ DAS Turret destroyed. 04825_ Penetrated by Slug. 04825_ Lgt. Ion Engine destroyed. 04827_ H-55 Commando destroyed. 04828_ Penetrated by Slug. 04830_ H-55 Commando destroyed. 04831_ Penetrated by Slug. 04831_ Lgt. Treads destroyed. 04833_ Slug penetrates Wall. 04834_ Discarded Lgt. Treads. 04836_ Penetrated by Slug. 04839_ Critical hit (Destroy). 04839_ Rocket Launcher destroyed. 04842_ Penetrated by Slug. 04843_ Slug penetrates Machine. 04845_ Penetrated by Slug. Map ----- +----------------------------------------------------+ | ??????????????????????#########??????????????????? | | ??????????????????????# #??????????????????? | | ??????????????????????# #??????????????????? | | ??????????????????????# ** #??????????????????? | | ??????????????????????# X#??????????????????? | | ??????????????????????## ##??????????????????? | | ??????????????????????#X #???????????????????? | | ??????????????????????## #???????????????????? | | ???????????????????????# #???????????????????? | | ???????????????????????# #########???????????? | | ???????????????????????# ##""""""#???????????? | | ???????????????????????# ## """#???????????? | | ???????????????????????# X""#???????????? | | ???????????????????????# ## """#???????????? | | ???????????????######### ##""""""#???????????? | | ???????????????#""""""## #########???????????? | | ???????????????#"""" ## #???????????????????? | | ???????????????#""X" #???????????????????? | | ???????????????#" #???????????????????? | | ???????????????#" ## #???????????????????? | | ???????????????#""""""## #?#########?????????? | | ???????????????##"###### #?#"""""""#?????????? | | ??????????????? "?????# #?#"""""""#?????????? | | ??????????????"""??????# #?#"""""""#?????????? | | ??????????????"""?????## ###"" """"#?????????? | | ??????????????????????# @ """"#?????????? | | ??????????????????????# """#?????????? | | ?????????????????????##" """#?????????? | | ?????????????????????# % """#?????????? | | ?????????????????????# % """#?????????? | | ?????????????????????# % """##????????? | | ????????????????????? """""????????? | | ????????????????????# g """##????????? | | ????????????????????# "X" """""????????? | | ????????????????????# """ # ????????? | | ????????????????????## hg """"""""#?????????? | | ????????????????????? ##########?????????? | | ????????????????????? = * #??????????????????? | | ????????????????????## h[= ##??????????????????? | | ???????????????????"""""!%=%|*#??????????????????? | | ??????????????????" " ""*%=%%%##???###########???? | | ?????????????????"" "%%%%=%%*#####"""""""""##??? | | ???????????????? " %%**%%[=% " """ """"##?? | | ?????????????? %=[%%=[%* "" " #?? | | ?????????????? !% %[ %%=% " """#?? | | ??????????????? =[%=%**%=% " "#?? | | ??????????????? % = [ %!% " "##? | | ??????????????? [% %%%= ""## | | ???????????????? """ "" %/ """ | | ???????????????? ####"#"""%%% " | +----------------------------------------------------+ Best States ------------- Heat Dissipation 25 Energy Generation 10 Energy Capacity 125 Matter Stores 300 Matter Capacity 300 Sight Range 16 Terrain Scan Range 16 Terrain Scan Density 10 Evasion (%) 50 Recoil Reduction 2 Item Schematics ----------------- None Robot Schematics ------------------ None Fabricated ------------ Nothing Alien Tech Used ----------------- None Achievements -------------- None Challenges ------------ None Game ------ Seed RelayTrackerBiocell Manual? 0 Play Time 00:23:35 Cumulative 31.9 hours Start 2024.04.30 @ 02:08:30 End 2024.04.30 @ 02:33:10 Sessions 1 Manual Loads 0 Difficulty Rogue Special Mode None Game No. 42 Rogue 37 Adventurer 5 Explorer 0 Win Type - Total 0 Types 0/0/0/0/0/0/0/0/0 Lore% 25 Gallery% 27 Achievement% 23 Wizard Run 0 Options --------- Layout 2 ASCII 0 Keyboard 0 Movement Mouse Keybinds 0 Fullscreen 2 Font 24/Smallcaps Map View 50x44 Zoom Use 0% Tactical HUD 1 Map Filters NONE Filters NONE Steam 1 RUN: 6e1e6c34-d28d-4058-a13a-0ff73020b804